bitfinex-derivatives/quotes_BNBF0:USTF0_20230830
["timestamp","ask_amount","ask_price","bid_price","bid_amount"]
[1693410393819,0.07319801,223.29,222.98,0.82014593]
[1693410395117,0.07319801,223.27,222.99,0.07268135]
[1693410395320,0.07319801,223.27,223.0,0.82014593]
[1693410397021,0.07319801,223.25,223.01,0.07268135]
[1693410397327,0.07319801,223.25,223.02,0.82014593]
[1693410398618,0.07319801,223.24,223.02,0.82014593]
[1693410399022,0.07319801,223.25,223.02,0.82014593]
[1693410400825,0.07319801,223.24,223.02,0.82014593]
[1693410401626,0.07319801,223.25,223.02,0.82014593]
[1693410402927,0.07319801,223.24,223.02,0.82014593]
[1693410403118,0.07319801,223.25,223.02,0.89282728]
[1693410403320,0.07319801,223.25,223.03,0.82014593]
[1693410403523,0.07319801,223.26,223.03,0.82014593]
[1693410404327,0.07319801,223.25,223.03,0.82014593]
[1693410405327,0.07319801,223.25,223.02,0.82014593]
[1693410408025,0.07319801,223.26,223.02,0.89282728]
[1693410408226,0.07319801,223.25,223.03,0.82014593]
[1693410408429,0.07319801,223.25,223.01,0.07268135]
[1693410408624,0.07319801,223.25,223.02,0.8172904]
[1693410416731,2.43993395,223.38,223.02,0.8172904]
[1693410416732,0.07319801,223.24,223.02,0.8172904]
[1693410416931,0.07319801,223.24,223.0,0.07268135]
[1693410417232,0.07319801,223.24,223.01,0.81750646]
[1693410418230,0.07319801,223.25,223.01,0.89018781]
[1693410418426,0.07319801,223.25,223.02,0.81750646]
[1693410418631,0.07319801,223.24,223.02,0.81750646]
[1693410418826,0.07319801,223.25,223.02,0.81750646]
[1693410419231,0.07319801,223.24,223.02,0.81750646]
[1693410419733,0.07319801,223.25,223.02,0.81750646]
[1693410422337,0.07319801,223.24,223.02,0.81750646]
[1693410425442,0.07319801,223.24,223.02,0.89018781]
[1693410425741,0.07319801,223.24,223.02,0.07268135]
[1693410426142,0.07319801,223.24,223.03,0.81724469]
[1693410426342,0.07319801,223.24,223.02,0.07268135]
[1693410426542,0.07319801,223.24,223.03,0.81728499]
[1693410428645,0.07319801,223.23,223.03,0.81728499]
[1693410429547,0.07319801,223.24,223.02,0.07268135]
[1693410429843,0.07319801,223.23,223.01,0.07268135]
[1693410430043,0.07319801,223.23,223.02,0.81730036]
[1693410430943,0.07319801,223.22,223.0,0.07268135]
[1693410431243,0.07319801,223.22,223.01,0.8174427]
[1693410431640,0.07319801,223.22,223.0,0.8174427]
[1693410431834,0.07319801,223.22,222.99,0.07268135]
[1693410432038,0.07319801,223.22,223.0,0.81751286]
[1693410433642,0.07319801,223.22,222.99,0.81751286]
[1693410433839,0.07319801,223.22,223.0,0.81706679]
[1693410434045,0.07319801,223.22,222.98,0.07268135]
[1693410434247,0.07319801,223.22,222.99,0.81707042]
[1693410435146,0.97597358,223.3,222.99,0.81707042]
[1693410435147,0.07319801,223.23,222.99,0.81707042]
[1693410438349,0.07319801,223.24,222.99,0.81707042]
[1693410441550,0.07319801,223.23,222.99,0.81707042]
[1693410444653,0.07319801,223.24,222.99,0.81707042]
[1693410447051,0.07319801,223.24,222.99,0.88975177]
[1693410447254,0.07319801,223.24,223.0,0.81707042]
[1693410447749,0.07319801,223.24,223.01,0.81707042]
[1693410447954,0.07319801,223.23,222.98,0.07268135]
[1693410448154,0.07319801,223.23,222.99,0.81626624]
[1693410448952,0.07319801,223.23,223.0,0.81626624]
[1693410449253,0.07319801,223.23,222.97,0.07268135]
[1693410449452,0.07319801,223.23,222.98,0.81627754]
[1693410450054,0.07319801,223.23,222.98,0.88895889]
[1693410450255,0.07319801,223.23,222.99,0.81627754]
[1693410450458,0.07319801,223.24,222.99,0.81627754]
[1693410451558,0.07319801,223.23,222.99,0.81627754]
[1693410457961,0.07319801,223.23,222.99,0.88895889]
[1693410458258,0.07319801,223.23,223.0,0.81627754]
[1693410463058,0.07319801,223.22,223.0,0.81627754]
[1693410464465,0.07319801,223.22,223.0,0.88895889]
[1693410464763,0.07319801,223.22,223.01,0.81627754]
[1693410465665,0.07319801,223.21,223.01,0.81627754]
[1693410473369,0.07319801,223.21,222.99,0.07268135]
[1693410473571,0.07319801,223.21,223.0,0.81731193]
[1693410476577,0.07319801,223.2,223.0,0.81731193]
[1693410477378,0.07319801,223.21,223.0,0.81731193]
[1693410477677,0.07319801,223.21,222.99,0.07268135]
[1693410477977,0.07319801,223.21,223.0,0.81744908]
[1693410479578,0.07319801,223.21,222.98,0.07268135]
[1693410479878,0.07319801,223.21,222.99,0.81741545]
[1693410480178,0.07319801,223.21,222.99,0.8900968]
[1693410480373,0.07319801,223.21,223.0,0.81741545]
[1693410480778,0.07319801,223.21,222.99,0.81741545]
[1693410480979,0.07319801,223.2,222.98,0.07268135]
[1693410481175,0.07319801,223.2,222.99,0.81750532]
[1693410481879,0.07319801,223.2,222.98,0.81750532]
[1693410482181,0.07319801,223.2,222.99,0.8174665]
[1693410482375,0.07319801,223.2,222.98,0.8174665]
[1693410482574,0.07319801,223.2,222.97,0.07268135]
[1693410482777,0.07319801,223.2,222.98,0.81747417]
[1693410484579,0.07319801,223.21,222.98,0.81747417]
[1693410486975,0.07319801,223.2,222.98,0.81747417]
[1693410487180,0.07319801,223.15,222.91,0.07268135]
[1693410487381,0.07319801,223.15,222.92,0.81760631]
[1693410487983,0.07319801,223.14,222.9,0.07268135]
[1693410488283,0.07319801,223.17,222.88,0.07268135]
[1693410488483,0.07319801,223.17,222.89,0.81766744]
[1693410489382,0.07319801,223.18,222.89,0.81766744]
[1693410489683,0.07319801,223.18,222.88,0.81766744]
[1693410489884,0.07319801,223.18,222.9,0.81766744]
[1693410490081,0.07319801,223.18,222.89,0.81766744]
[1693410490380,0.07319801,223.18,222.63,0.96908473]
[1693410490381,0.07319801,223.19,222.9,0.81766744]
[1693410490582,0.07319801,223.2,222.91,0.81766744]
[1693410490878,0.07319801,223.2,222.87,0.81766744]
[1693410491083,0.07319801,223.2,222.88,0.81766744]
[1693410491481,0.07319801,223.2,222.89,0.81766744]
[1693410491682,0.07319801,223.2,222.87,0.81766744]
[1693410491987,0.07319801,223.2,222.88,0.81766744]
[1693410492287,0.07319801,223.2,222.86,0.07268135]
[1693410492288,0.07319801,223.2,222.89,0.81766744]
[1693410492484,0.07319801,223.2,222.86,0.81766744]
[1693410492680,0.07319801,223.2,222.87,0.81766744]
[1693410492980,0.07319801,223.2,222.88,0.81766744]
[1693410493184,0.07319801,223.2,222.89,0.81766744]
[1693410493385,0.07319801,223.2,222.86,0.81766744]
[1693410493688,0.07319801,223.2,222.84,0.07268135]
[1693410493689,0.07319801,223.2,222.87,0.81766744]
[1693410493883,0.07319801,223.2,222.85,0.81766744]
[1693410494387,0.07319801,223.21,222.86,0.81766744]
[1693410494686,0.07319801,223.21,222.85,0.81766744]
[1693410494886,0.07319801,223.21,222.87,0.81766744]
[1693410495089,0.07319801,223.21,222.88,0.81766744]
[1693410495387,0.07319801,223.21,222.89,0.81766744]
[1693410495588,0.07319801,223.21,222.85,0.81766744]
[1693410495787,0.07319801,223.21,222.86,0.81766744]
[1693410495986,0.07319801,223.21,222.87,0.81766744]
[1693410496187,0.07319801,223.21,222.88,0.81766744]
[1693410496385,0.07319801,223.21,222.85,0.81766744]
[1693410496582,0.07319801,223.22,222.86,0.81766744]
[1693410496785,0.07319801,223.22,222.85,0.81766744]
[1693410496982,0.14639603,223.24,222.77,0.1453627]
[1693410496983,0.07319801,223.21,222.86,0.81766744]
[1693410497287,0.07319801,223.21,222.87,0.81766744]
[1693410497487,0.07319801,223.21,222.84,0.81766744]
[1693410497687,0.07319801,223.21,222.85,0.81766744]
[1693410497887,0.07319801,223.21,222.86,0.81766744]
[1693410498089,0.07319801,223.21,222.84,0.81766744]
[1693410498289,0.07319801,223.21,222.85,0.81766744]
[1693410498489,0.07319801,223.22,222.84,0.81766744]
[1693410499486,0.07319801,223.22,222.85,0.81766744]
[1693410499688,0.07319801,223.22,222.83,0.81766744]
[1693410500290,0.07319801,223.22,222.83,0.89034879]
[1693410500490,0.07319801,223.22,222.84,0.81766744]
[1693410500692,0.07319801,223.22,222.85,0.81766744]
[1693410500893,0.07319801,223.22,222.83,0.81766744]
[1693410503597,0.07319801,223.22,222.84,0.81766744]
[1693410503792,0.07319801,223.22,222.83,0.81766744]
[1693410503998,0.07319801,223.22,222.84,0.81766744]
[1693410504297,0.07319801,223.21,222.85,0.81766744]
[1693410504491,0.07319801,223.21,222.82,0.81766744]
[1693410504694,0.07319801,223.21,222.83,0.81766744]
[1693410504896,0.07319801,223.21,222.82,0.81766744]
[1693410507899,0.07319801,223.22,222.82,0.89034879]
[1693410508299,0.07319801,223.22,222.83,0.81766744]
[1693410509499,0.07319801,223.21,222.83,0.89034879]
[1693410509799,0.07319801,223.22,222.84,0.81766744]
[1693410510498,0.07319801,223.21,222.84,0.81766744]
[1693410512202,0.07319801,223.2,222.84,0.81766744]
[1693410512399,0.07319801,223.2,222.84,0.89034879]
[1693410512700,0.07319801,223.2,222.85,0.81766744]
[1693410513403,0.07319801,223.19,222.84,0.89034879]
[1693410513699,0.07319801,223.19,222.85,0.81766744]
[1693410514301,0.07319801,223.19,222.85,0.89034879]
[1693410514503,0.07319801,223.19,222.86,0.81766744]
[1693410514802,0.07319801,223.18,222.86,0.81766744]
[1693410515197,0.07319801,223.19,222.86,0.81766744]
[1693410515397,0.14639603,223.21,222.86,0.81766744]
[1693410515398,0.07319801,223.18,222.86,0.81766744]
[1693410516704,0.07319801,223.18,222.86,0.89034879]
[1693410516906,0.07319801,223.18,222.87,0.81766744]
[1693410518507,0.07319801,223.17,222.87,0.89034879]
[1693410518805,0.07319801,223.17,222.88,0.81766744]
[1693410519706,0.07319801,223.16,222.88,0.89034879]
[1693410519901,0.07319801,223.16,222.89,0.81766744]
[1693410520899,0.07319801,223.15,222.89,0.81766744]
[1693410521406,0.07319801,223.13,222.91,0.07268135]
[1693410521600,0.07319801,223.13,222.92,0.81766744]
[1693410522006,0.07319801,223.13,222.91,0.89034879]
[1693410522210,0.07319801,223.13,222.92,0.81764448]
[1693410526816,0.07319801,223.12,222.9,0.07268135]
[1693410527010,0.07319801,223.12,222.91,0.81748231]
[1693410529508,0.07319801,223.12,222.89,0.07268135]
[1693410529716,0.07319801,223.12,222.9,0.81708177]
[1693410530717,0.07319801,223.12,222.9,0.88976312]
[1693410530915,0.07319801,223.12,222.91,0.81708177]
[1693410531614,0.07319801,223.12,222.89,0.07268135]
[1693410531811,0.07319801,223.12,222.9,0.81716497]
[1693410536710,0.07319801,223.11,222.9,0.81716497]
[1693410536914,0.07319801,223.11,222.88,0.07268135]
[1693410537113,0.07319801,223.11,222.89,0.81724436]
[1693410537919,0.07319801,223.12,222.89,0.81724436]
[1693410543720,0.07319801,223.11,222.88,0.81724436]
[1693410544724,0.07319801,223.11,222.87,0.81724436]
[1693410544922,0.07319801,223.11,222.89,0.81724436]
[1693410545116,0.07319801,223.11,222.88,0.81724436]
[1693410545320,0.07319801,223.11,222.86,0.07268135]
[1693410545620,0.07319801,223.11,222.87,0.81711206]
[1693410546623,0.07319801,223.1,222.87,0.81711206]
[1693410546824,0.07319801,223.1,222.86,0.81711206]
[1693410547018,0.07319801,223.1,222.87,0.81711206]
[1693410547217,0.07319801,223.1,222.86,0.81711206]
[1693410547524,0.07319801,223.11,222.86,0.81711206]
[1693410547826,0.07319801,223.11,222.87,0.81711206]
[1693410548022,0.07319801,223.11,222.85,0.81711206]
[1693410548243,0.07319801,223.11,222.86,0.81735428]
[1693410548523,0.07319801,223.11,222.87,0.81735428]
[1693410548723,0.07319801,223.11,222.85,0.81735428]
[1693410549024,0.07319801,223.11,222.86,0.81735428]
[1693410549225,0.07319801,223.11,222.87,0.81735428]
[1693410549417,0.07319801,223.11,222.85,0.81735428]
[1693410549620,0.07319801,223.11,222.84,0.07268135]
[1693410549621,0.07319801,223.11,222.86,0.81740702]
[1693410549825,0.07319801,223.11,222.87,0.81740702]
[1693410550024,0.07319801,223.11,222.84,0.07268135]
[1693410550221,0.07319801,223.11,222.85,0.81743715]
[1693410550622,0.07319801,223.11,222.86,0.81743715]
[1693410550827,0.07319801,223.12,222.84,0.81743715]
[1693410551022,0.07319801,223.11,222.87,0.81743715]
[1693410551326,0.07319801,223.11,222.83,0.07268135]
[1693410551626,0.07319801,223.12,222.84,0.8179102]
[1693410552022,0.07319801,223.12,222.84,0.89059155]
[1693410552222,0.07319801,223.12,222.85,0.8179102]
[1693410552922,0.07319801,223.13,222.85,0.89059155]
[1693410553123,0.07319801,223.13,222.86,0.8179102]
[1693410553325,0.07319801,223.14,222.86,0.8179102]
[1693410554428,0.07319801,223.13,222.86,0.8179102]
[1693410557327,0.07319801,223.13,222.86,0.89059155]
[1693410557527,0.07319801,223.13,222.87,0.8179102]
[1693410561324,0.07319801,223.12,222.87,0.8179102]
[1693410566330,0.07319801,223.11,222.87,0.8179102]
[1693410567431,0.07319801,223.1,222.86,0.8179102]
[1693410567623,0.07319801,223.1,222.87,0.81745573]
[1693410568033,0.07319801,223.1,222.85,0.81745573]
[1693410568424,0.07319801,223.1,222.86,0.81748523]
[1693410568629,0.07319801,223.1,222.85,0.81748523]
[1693410569030,0.07319801,223.1,222.87,0.81748523]
[1693410569431,0.07319801,223.1,222.86,0.81748523]
[1693410569732,0.07319801,223.1,222.87,0.81794649]
[1693410569940,0.07319801,223.1,222.85,0.81794649]
[1693410570332,0.07319801,223.11,222.85,0.89062784]
[1693410570731,0.07319801,223.11,222.86,0.81794649]
[1693410573134,0.07319801,223.1,222.86,0.81794649]
[1693410578139,0.07319801,223.1,222.86,0.89062784]
[1693410578340,0.07319801,223.1,222.87,0.81794649]
[1693410579141,0.07319801,223.1,222.88,0.81794649]
[1693410579342,0.07319801,223.1,222.86,0.81794649]
[1693410579636,0.07319801,223.1,222.87,0.81786468]
[1693410579842,0.07319801,223.1,222.86,0.81786468]
[1693410580038,0.07319801,223.1,222.87,0.81786468]
[1693410580437,0.07319801,223.1,222.86,0.81786468]
[1693410580638,0.07319801,223.1,222.88,0.81786468]
[1693410580941,0.07319801,223.1,222.85,0.07268135]
[1693410581140,0.07319801,223.1,222.86,0.81778206]
[1693410581543,0.07319801,223.1,222.86,0.89046341]
[1693410581847,0.07319801,223.1,222.87,0.81778206]
[1693410582037,0.07319801,223.1,222.86,0.81778206]
[1693410582238,0.07319801,223.1,222.87,0.81778206]
[1693410582439,0.07319801,223.1,222.86,0.81778206]
[1693410582638,0.07319801,223.1,222.87,0.81778206]
[1693410582944,0.07319801,223.1,222.88,0.81778206]
[1693410583143,0.07319801,223.1,222.85,0.07268135]
[1693410583444,0.07319801,223.1,222.86,0.81794658]
[1693410584647,0.07319801,223.1,222.86,0.89062793]
[1693410584843,0.07319801,223.1,222.87,0.81794658]
[1693410590043,0.07319801,223.1,222.88,0.81794658]
[1693410590241,0.07319801,223.1,222.85,0.07268135]
[1693410590443,0.07319801,223.1,222.86,0.89046932]
[1693410590744,0.07319801,223.1,222.87,0.81778797]
[1693410592345,0.07319801,223.09,222.87,0.81778797]
[1693410592849,0.07319801,223.09,222.85,0.07268135]
[1693410593146,0.07319801,223.09,222.86,0.81790545]
[1693410595355,0.07319801,223.08,222.86,0.81790545]
[1693410597953,0.07319801,223.04,222.81,0.07268135]
[1693410598256,0.07319801,223.03,222.8,0.07268135]
[1693410598556,0.07319801,223.03,222.81,0.81854522]
[1693410599457,0.07319801,223.05,222.81,0.81854522]
[1693410599657,0.07319801,223.05,222.78,0.07268135]
[1693410599855,0.07319801,223.05,222.79,0.81853585]
[1693410601957,2.43993395,223.19,222.79,0.81853585]
[1693410601958,0.07319801,223.06,222.79,0.81853585]
[1693410602150,0.07319801,223.06,222.8,0.81853585]
[1693410602352,0.07319801,223.06,222.81,0.81853585]
[1693410602552,0.07319801,223.06,222.78,0.81853585]
[1693410602753,0.07319801,223.06,222.79,0.81853585]
[1693410602953,0.07319801,223.07,222.78,0.81853585]
[1693410603153,0.07319801,223.07,222.79,0.81853585]
[1693410603351,0.07319801,223.07,222.77,0.07268135]
[1693410603352,0.07319801,223.07,222.78,0.81853585]
[1693410604253,0.07319801,223.08,222.78,0.81853585]
[1693410604454,0.07319801,223.08,222.77,0.81853585]
[1693410604650,0.07319801,223.08,222.78,0.81853585]
[1693410604855,0.07319801,223.08,222.77,0.81853585]
[1693410605052,0.07319801,223.08,222.78,0.81853585]
[1693410605256,0.07319801,223.08,222.79,0.81853585]
[1693410605557,0.07319801,223.08,222.8,0.81853585]
[1693410605757,0.07319801,223.08,222.77,0.81853585]
[1693410606060,0.07319801,223.08,222.78,0.81853585]
[1693410606253,0.07319801,223.08,222.79,0.81853585]
[1693410606557,0.07319801,223.09,222.77,0.81853585]
[1693410606754,0.07319801,223.09,222.8,0.81853585]
[1693410606952,0.07319801,223.09,222.81,0.81853585]
[1693410607155,0.07319801,223.09,222.77,0.81853585]
[1693410607457,0.07319801,223.09,222.78,0.81853585]
[1693410607651,0.07319801,223.09,222.79,0.81853585]
[1693410607855,0.07319801,223.09,222.77,0.81853585]
[1693410608052,0.14639603,223.11,222.8,0.8912172]
[1693410608256,0.07319801,223.14,222.81,0.8912172]
[1693410608460,0.07319801,223.14,222.82,0.81853585]
[1693410613763,0.07319801,223.15,222.82,0.81853585]
[1693410614164,0.07319801,223.14,222.82,0.81853585]
[1693410614364,0.07319801,223.15,222.82,0.81853585]
[1693410615363,0.07319801,223.16,222.83,0.07268135]
[1693410615561,0.07319801,223.16,222.84,0.81853585]
[1693410617675,0.07319801,223.16,222.83,0.81853585]
[1693410617976,0.07319801,223.16,222.84,0.81853585]
[1693410618172,0.07319801,223.16,222.83,0.81853585]
[1693410618370,0.07319801,223.16,222.84,0.81853585]
[1693410618571,0.07319801,223.16,222.85,0.81853585]
[1693410618770,0.07319801,223.16,222.83,0.81853585]
[1693410618973,0.07319801,223.16,222.84,0.81853585]
[1693410619172,0.07319801,223.16,222.85,0.81853585]
[1693410619372,0.07319801,223.16,222.83,0.81853585]
[1693410619573,0.07319801,223.16,222.84,0.81853585]
[1693410619771,0.07319801,223.16,222.83,0.81853585]
[1693410619969,0.07319801,223.16,222.84,0.81853585]
[1693410620175,0.07319801,223.16,222.85,0.81853585]
[1693410620376,0.07319801,223.16,222.83,0.81853585]
[1693410620577,0.07319801,223.17,222.83,0.81853585]
[1693410620770,0.07319801,223.16,222.83,0.81853585]
[1693410621275,0.07319801,223.17,222.83,0.81853585]
[1693410628080,0.07319801,223.17,222.82,0.81853585]
[1693410628282,0.07319801,223.17,222.83,0.81853585]
[1693410628477,0.07319801,223.17,222.84,0.81853585]
[1693410628782,0.07319801,223.16,222.83,0.81853585]
[1693410628976,0.07319801,223.16,222.85,0.81853585]
[1693410629178,0.07319801,223.16,222.86,0.81853585]
[1693410629377,0.07319801,223.16,222.81,0.81853585]
[1693410629577,0.07319801,223.16,222.82,0.81853585]
[1693410629777,0.07319801,223.16,222.81,0.81853585]
[1693410629980,0.07319801,223.16,222.82,0.81853585]
[1693410630179,0.07319801,223.16,222.81,0.81853585]
[1693410630378,0.07319801,223.16,222.82,0.81853585]
[1693410630583,0.07319801,223.16,222.83,0.81853585]
[1693410630782,0.07319801,223.16,222.81,0.81853585]
[1693410634484,0.07319801,223.15,222.81,0.8912172]
[1693410634681,0.07319801,223.15,222.82,0.81853585]
[1693410638187,0.07319801,223.14,222.82,0.8912172]
[1693410638387,0.07319801,223.14,222.83,0.81853585]
[1693410639183,0.07319801,223.13,222.83,0.8912172]
[1693410639388,0.07319801,223.13,222.84,0.81853585]
[1693410640190,0.07319801,223.12,222.84,0.8912172]
[1693410640382,0.07319801,223.12,222.85,0.81853585]
[1693410641587,0.07319801,223.1,222.86,0.07268135]
[1693410641891,0.07319801,223.1,222.87,0.81853585]
[1693410652300,0.07319801,223.1,222.87,0.8912172]
[1693410652599,0.07319801,223.1,222.88,0.81853585]
[1693410653100,0.07319801,223.1,222.89,0.81853585]
[1693410653301,0.07319801,223.1,222.86,0.07268135]
[1693410653503,0.07319801,223.1,222.87,0.81782656]
[1693410654597,0.07319801,223.09,222.87,0.81782656]
[1693410658406,0.07319801,223.09,222.86,0.81782656]
[1693410658602,0.07319801,223.08,222.85,0.07268135]
[1693410658806,0.07319801,223.08,222.86,0.81808459]
[1693410670617,0.07319801,223.08,222.85,0.89076594]
[1693410670913,0.07319801,223.08,222.86,0.81808459]
[1693410671613,0.07319801,223.08,222.87,0.81808459]
[1693410671818,0.07319801,223.08,222.85,0.81808459]
[1693410672015,0.07319801,223.08,222.84,0.07268135]
[1693410672216,0.07319801,223.08,222.86,0.81828857]
[1693410672418,0.07319801,223.08,222.85,0.89096992]
[1693410672711,0.07319801,223.08,222.86,0.81828857]
[1693410673017,0.07319801,223.08,222.87,0.81828857]
[1693410673217,0.07319801,223.08,222.85,0.81828857]
[1693410673420,0.07319801,223.08,222.86,0.81868036]
[1693410673718,0.07319801,223.08,222.87,0.81868036]
[1693410673918,0.07319801,223.08,222.85,0.81868036]
[1693410674112,0.07319801,223.08,222.86,0.81870532]
[1693410674313,0.07319801,223.08,222.85,0.81870532]
[1693410674514,0.07319801,223.08,222.86,0.81870532]
[1693410674719,0.07319801,223.08,222.85,0.81870532]
[1693410674919,0.07319801,223.08,222.86,0.81870532]
[1693410675119,0.07319801,223.08,222.85,0.81870532]
[1693410676922,0.07319801,223.09,222.85,0.81870532]
[1693410677623,0.07319801,223.08,222.85,0.81870532]
[1693410677824,0.14639603,223.11,222.85,0.81870532]
[1693410677825,0.07319801,223.09,222.85,0.81870532]
[1693410678224,0.07319801,223.08,222.85,0.81870532]
[1693410685728,0.07319801,223.08,222.85,0.89138667]
[1693410685927,0.07319801,223.08,222.86,0.81870532]
[1693410689324,0.07319801,223.07,222.86,0.81870532]
[1693410692232,0.07319801,223.07,222.86,0.89138667]
[1693410692531,0.07319801,223.07,222.87,0.81870532]
[1693410693132,0.07319801,223.08,222.87,0.89138667]
[1693410693334,0.07319801,223.08,222.88,0.81870532]
[1693410693532,0.07319801,223.09,222.88,0.81870532]
[1693410694836,0.07319801,223.08,222.88,0.81870532]
[1693410695030,0.07319801,223.08,222.86,0.07268135]
[1693410695232,0.07319801,223.08,222.87,0.81853789]
[1693410695431,0.07319801,223.09,222.87,0.81853789]
[1693410711646,0.07319801,223.1,222.87,0.89121924]
[1693410711843,0.07319801,223.1,222.88,0.81853789]
[1693410715454,0.07319801,223.1,222.87,0.81853789]
[1693410716054,0.07319801,223.1,222.87,0.89121924]
[1693410716255,0.07319801,223.1,222.88,0.81853789]
[1693410716957,0.07319801,223.1,222.89,0.81853789]
[1693410717160,0.07319801,223.1,222.86,0.07268135]
[1693410717356,0.07319801,223.1,222.87,0.07268135]
[1693410717858,0.07319801,223.11,222.88,0.8198365]
[1693410720158,0.07319801,223.11,222.88,0.89251785]
[1693410720355,0.07319801,223.12,222.89,0.8198365]
[1693410720553,0.07319801,223.11,222.89,0.8198365]
[1693410722555,0.07319801,223.12,222.89,0.8198365]
[1693410723260,0.07319801,223.11,222.89,0.8198365]
[1693410723761,0.07319801,223.11,222.9,0.8198365]
[1693410723962,0.07319801,223.11,222.88,0.8198365]
[1693410724261,0.07319801,223.11,222.89,0.81990687]
[1693410724461,0.07319801,223.11,222.88,0.81990687]
[1693410724661,0.07319801,223.11,222.89,0.81990687]
[1693410724859,0.07319801,223.1,222.88,0.81990687]
[1693410725056,0.07319801,223.1,222.86,0.07268135]
[1693410725258,0.07319801,223.1,222.87,0.81999474]
[1693410725461,0.07319801,223.1,222.87,0.89267609]
[1693410725760,0.07319801,223.1,222.88,0.81999474]
[1693410733962,0.07319801,223.11,222.88,0.81999474]
[1693410734163,0.07319801,223.11,222.88,0.89267609]
[1693410734568,0.07319801,223.11,222.89,0.81999474]
[1693410737367,0.07319801,223.12,222.89,0.81999474]
[1693410747970,2.43993395,223.25,222.89,0.81999474]
[1693410748275,0.07347898,223.12,222.9,0.81999474]
[1693410748474,0.07347898,223.12,222.91,0.81999474]
[1693410748676,0.07347898,223.12,222.88,0.07312972]
[1693410748875,0.07347898,223.12,222.89,0.81988866]
[1693410756775,0.07347898,223.11,222.89,0.81988866]
[1693410759678,0.07347898,223.1,222.89,0.81988866]
[1693410759879,0.07347898,223.1,222.87,0.07312972]
[1693410760181,0.07347898,223.1,222.88,0.81989133]
[1693410763079,0.07347898,223.1,222.87,0.81989133]
[1693410763381,0.07347898,223.1,222.86,0.07312972]
[1693410763573,0.07347898,223.1,222.88,0.81994929]
[1693410763778,0.07347898,223.1,222.87,0.81994929]
[1693410764079,0.07347898,223.1,222.88,0.8199199]
[1693410764381,0.07347898,223.1,222.86,0.07312972]
[1693410764583,0.07347898,223.1,222.87,0.81993415]
[1693410765185,0.07347898,223.09,222.87,0.81993415]
[1693410765680,0.07347898,223.09,222.88,0.81993415]
[1693410765983,0.07347898,223.09,222.85,0.07312972]
[1693410766180,0.07347898,223.09,222.86,0.81991155]
[1693410766780,0.07347898,223.1,222.86,0.81991155]
[1693410775983,0.07347898,223.1,222.85,0.81991155]
[1693410781500,0.07347898,223.09,222.85,0.81991155]
[1693410781691,0.07347898,223.1,222.84,0.81991155]
[1693410781896,0.07347898,223.1,222.85,0.81991155]
[1693410782091,0.07347898,223.1,222.84,0.81991155]
[1693410782296,0.07347898,223.1,222.85,0.81991155]
[1693410782497,0.07347898,223.1,222.84,0.81991155]
[1693410782699,0.07347898,223.1,222.86,0.81991155]
[1693410782894,0.07347898,223.1,222.85,0.81991155]
[1693410783198,0.07343805,223.1,222.86,0.81991155]
[1693410783398,0.07343805,223.1,222.84,0.81991155]
[1693410783698,0.07343805,223.1,222.85,0.81991155]
[1693410783900,0.07343805,223.1,222.86,0.81991155]
[1693410784100,0.07343805,223.1,222.84,0.81991155]
[1693410784300,0.07343805,223.1,222.85,0.81991155]
[1693410784494,0.07343805,223.1,222.84,0.81991155]
[1693410784698,0.07343805,223.1,222.85,0.81991155]
[1693410785000,0.07343805,223.1,222.86,0.81991155]
[1693410785198,0.07343805,223.1,222.84,0.81991155]
[1693410785393,0.07343805,223.1,222.85,0.81991155]
[1693410785594,0.07343805,223.1,222.84,0.81991155]
[1693410787805,0.07343805,223.1,222.84,0.89296782]
[1693410788001,0.07343805,223.1,222.85,0.81991155]
[1693410788201,0.07343805,223.09,222.85,0.81991155]
[1693410788496,0.07343805,223.09,222.84,0.81991155]
[1693410788701,0.07343805,223.09,222.85,0.81991155]
[1693410788903,0.07343805,223.09,222.6,0.97408371]
[1693410788904,0.07343805,223.1,222.84,0.89296782]
[1693410789300,0.07343805,223.11,222.86,0.81991155]
[1693410789698,0.07343805,223.11,222.85,0.89296782]
[1693410789903,0.07343805,223.1,222.85,0.89296782]
[1693410790204,0.07343805,223.11,222.87,0.81991155]
[1693410790403,0.07343805,223.11,222.86,0.81991155]
[1693410790702,0.07343805,223.11,222.87,0.81991155]
[1693410790998,0.07343805,223.1,222.86,0.81991155]
[1693410791203,0.07343805,223.1,222.87,0.81991155]
[1693410791405,0.07343805,223.1,222.86,0.81991155]
[1693410791605,0.07343805,223.1,222.87,0.81991155]
[1693410791907,0.07343805,223.1,222.86,0.89296782]
[1693410792207,0.07343805,223.1,222.87,0.81991155]
[1693410793806,0.07343805,223.09,222.87,0.81991155]
[1693410795805,0.07343805,223.08,222.87,0.81991155]
[1693410796205,0.07343805,223.09,222.87,0.81991155]
[1693410798711,0.07343805,223.08,222.87,0.81991155]
[1693410804616,0.07343805,223.09,222.87,0.89296782]
[1693410804816,0.07343805,223.09,222.88,0.81991155]
[1693410807015,0.07343805,223.09,222.86,0.07305627]
[1693410807216,0.07343805,223.09,222.87,0.81959376]
[1693410807618,0.07343805,223.08,222.87,0.81959376]
[1693410810611,0.07343805,223.09,222.87,0.81959376]
[1693410810817,0.07343805,223.09,222.87,0.89265003]
[1693410811019,0.07343805,223.09,222.88,0.81959376]